[Event "44th Chess Olympiad Women 2022"]
[Site "Chennai"]
[Date "2022.07.29"]
[Round "1.18"]
[White "Eric, Jovana"]
[Black "Gamage, Desandhi Dhihansa"]
[Result "1-0"]
[ECO "B51"]
[WhiteElo "2271"]
[BlackElo "1561"]
[Annotator "TA"]
[PlyCount "55"]
[EventDate "2022.07.29"]
[EventType "team-tourn"]
[EventCountry "IND"]
[SourceTitle "playchess.com"]
[Source "ChessBase"]
[SourceQuality "1"]
[WhiteTeam "Serbia"]
[BlackTeam "Sri Lanka"]
[WhiteTeamCountry "SRB"]
[BlackTeamCountry "SRI"]
[TimeControl "40/5400+30:1800+30"]

{[%evp 9,54,37,50,40,63,24,89,77,101,97,352,363,363,367,378,375,339,324,300,305,377,234,578,432,1314,1316,1495,1486,1489,1433,1393,1344,29992,1810,29990,29991,29991,29992,29994,29992,29992,29992,29997,29998,29998,29999,29999]} 1. e4 {[%emt 0:00:03]} c5 {[%emt 0:00:09]} 2. Nf3 {[%emt 0:00:10]} d6 {[%emt 0:00:06]} 3. Bb5+ {[%emt 0:00:16]} Nc6 {[%emt 0:00:06]} 4. O-O {[%emt 0:00:30]} Bg4 {[%emt 0:03:16]} 5. h3 {[%emt 0:01:59]} Bh5 {[%emt 0:02:28]} 6. Nc3 {[%emt 0:04:27] B51: Sicilian: Moscow Variation (3 Bb5+) without 3...Bd7.} Nf6 {[%emt 0:03:05]} 7. Re1 {[%emt 0:02:00] [#] Threatens to win with g4.} e6 $146 {[%emt 0:08:06] [#]} (7... e5 $11) ({Predecessor:} 7... e5 8. Nd5 Be7 9. Nxe7 Qxe7 10. c3 O-O 11. Be2 Nxe4 12. Nxe5 Qf6 13. Nf3 d5 {1-0 (36) Wahlgreen,N (1432)-Singh,Y (1304) Tornelo INT 2020}) 8. g4 $1 $16 {[%emt 0:07:32] White is more active. White is better.} Bg6 {[%emt 0:00:15]} 9. d4 {[%emt 0:00:36][%cal Bd2d4,Bd4d5][%mdl 32]} d5 $2 {[%emt 0:28:27][%mdl 8192] [#]} (9... cxd4 $16 {was necessary.} 10. Nxd4 Rc8) 10. exd5 $1 $18 {[%emt 0:03:26]} Nxd5 {[%emt 0:00:51]} 11. Nxd5 {[%emt 0:00:24]} Qxd5 {[%emt 0:00:09]} 12. c4 {[%emt 0:00:06]} Qd6 {[%emt 0:08:08]} 13. d5 {[%emt 0:04:47]} O-O-O {[%emt 0:00:17][%cal Re6d5]} 14. Bg5 {[%emt 0:01:12]} Ne7 {[%emt 0:01:53]} 15. dxe6 {[%emt 0:02:09]} fxe6 $2 {[%emt 0:08:16]} (15... f6) 16. Qe2 {[%emt 0:01:23] Strongly threatening Rad1.} Bf7 {[%emt 0:02:49]} (16... Bd3 $142) 17. Rad1 {[%emt 0:01:56]} Qb6 {[%emt 0:05:10]} 18. Rxd8+ {[%emt 0:00:28]} Qxd8 {[%emt 0:03:20]} 19. Ne5 {[%emt 0:01:34]} Bg8 {[%emt 0:02:44]} 20. Rd1 {[%emt 0:00:21]} Qa5 {[%emt 0:02:24]} 21. Qd3 {[%emt 0:01:18]} (21. Qf3 $142 Nf5 22. Rd7 Qb6 23. Bd8 Nh4 24. Qxf8 Bf7 25. Qxh8 Bg8 26. Bxb6 Nf3+ 27. Nxf3 axb6 28. Qxg8#) 21... a6 {[%emt 0:09:15]} 22. Qd7+ {[%emt 0:01:03] White mates.} Kb8 {[%emt 0:00:09]} 23. Bxe7 {[%emt 0:00:43]} axb5 {[%emt 0:04:07]} 24. Nc6+ {[%emt 0:01:42]} bxc6 {[%emt 0:00:19]} 25. Qe8+ {[%emt 0:00:04]} Kc7 {[%emt 0:00:23]} 26. Rd7+ {[%emt 0:00:18]} Kb6 {[%emt 0:00:06]} 27. Qb8+ {[%emt 0:00:10]} Ka6 {[%emt 0:00:08]} 28. Ra7# {[%emt 0:00:05] White took control after the opening.  Weighted Error Value: White=0.19 (very precise) /Black=1.29} 1-0

[Event "44th Chess Olympiad Women 2022"]
[Site "Chennai"]
[Date "2022.07.29"]
[Round "1.18"]
[White "Abeysinghe, H M H Janandani"]
[Black "Gajcin, Marina"]
[Result "0-1"]
[ECO "D80"]
[WhiteElo "1516"]
[BlackElo "2271"]
[Annotator "TA"]
[PlyCount "82"]
[EventDate "2022.07.29"]
[EventType "team-tourn"]
[EventCountry "IND"]
[SourceTitle "playchess.com"]
[Source "ChessBase"]
[SourceQuality "1"]
[WhiteTeam "Sri Lanka"]
[BlackTeam "Serbia"]
[WhiteTeamCountry "SRI"]
[BlackTeamCountry "SRB"]
[TimeControl "40/5400+30:1800+30"]

{[%evp 11,81,34,33,0,0,-2,0,-1,-10,-13,-15,-11,-18,-15,-8,-18,-18,-12,-10,-13,-10,-17,-15,-18,-6,-34,-29,-29,-34,-30,-30,-74,-90,-146,-141,-460,-458,-445,-438,-607,-598,-599,-584,-712,-710,-710,-702,-681,-664,-1574,-1011,-29969,-29969,-29970,-29971,-11510,-5804,-29980,-29981,-5150,-1437,-29969,-29972,-29996,-29995,-29995,-29995,-29995,-29996,-29996,-29997,-29999]} 1. d4 {[%emt 0:00:09]} Nf6 {[%emt 0:00:26]} 2. c4 {[%emt 0:00:17]} g6 {[%emt 0:00:50]} 3. Nc3 {[%emt 0:00:27]} d5 {[%emt 0:00:06]} 4. Bg5 {[%emt 0:00:51]} Bg7 {[%emt 0:01:26]} 5. Bxf6 {[%emt 0:02:37]} Bxf6 {[%emt 0:02:31]} 6. cxd5 {[%emt 0:00:36]} c6 {[%emt 0:05:01]} 7. e3 {[%emt 0:01:42] D80: Grünfeld: Unusual White 4th moves and 4 Bg5.} cxd5 {[%emt 0:03:29]} 8. Qb3 {[%emt 0:06:03]} e6 {[%emt 0:03:23]} 9. Bd3 {[%emt 0:05:14] [#] The position is equal.} O-O $146 {[%emt 0:01:34]} ({Predecessor:} 9... Nc6 10. Nf3 O-O 11. O-O b6 12. Rac1 Bb7 13. h3 Na5 14. Qa4 Bc6 15. Qc2 Rc8 {½-½ (32) Grummitt,W-Llompart Flexas,G (1980) ICCF email 2010}) 10. Nge2 {[%emt 0:04:30]} Nc6 {[%emt 0:05:40][%cal Bb8c6,Bc6a5,Ba5c4][%mdl 32]} 11. O-O {[%emt 0:04:10]} Bd7 {[%emt 0:10:36]} 12. Rfc1 {[%emt 0:07:38]} (12. Qxb7 $2 Rb8 13. Qa6 Nb4 $19) 12... Rc8 {[%emt 0:06:17]} 13. Rab1 {[%emt 0:03:27]} ({Wrong is} 13. Qxb7 $2 Rb8 14. Qa6 Nb4 15. Qxa7 Nxd3 $19) 13... Bg7 {[%emt 0:08:15]} 14. a3 {[%emt 0:08:13]} ({Avoid the trap} 14. Qxb7 $2 Rb8 15. Qa6 Nb4 $19) 14... Na5 {[%emt 0:11:37]} 15. Qa2 {[%emt 0:03:52]} Nc4 {[%emt 0:05:53]} 16. b3 {[%emt 0:03:42]} Nd6 {[%emt 0:00:22]} 17. a4 {[%emt 0:03:28]} Qg5 {[%emt 0:04:43]} 18. b4 {[%emt 0:06:00]} Nf5 {[%emt 0:03:13][%cal Of5e3] Strongly threatening ...Nxe3!} 19. Bxf5 {[%emt 0:04:11]} Qxf5 {[%emt 0:00:10]} 20. b5 {[%emt 0:01:21]} Rc4 {[%emt 0:07:19]} 21. e4 {[%emt 0:07:05]} Qg5 {[%emt 0:01:10] Black is more active.} 22. exd5 {[%emt 0:04:35]} ({Better is} 22. e5) 22... exd5 $17 {[%emt 0:00:26]} 23. Nxd5 $2 {[%emt 0:07:09][%mdl 8192] This move loses the game for White.} (23. f4 $17 {is tougher.} Qd8 24. Rd1 (24. Nxd5 $2 Rxc1+ 25. Rxc1 Be6 $19)) 23... Rxc1+ $19 {[%emt 0:00:38]} 24. Rxc1 {[%emt 0:00:00] [#]} Be6 $1 {[%emt 0:01:46]} 25. Rc5 {[%emt 0:04:05]} b6 {[%emt 0:02:54]} 26. f4 {[%emt 0:02:45]} Qd8 {[%emt 0:00:37]} 27. Rc1 {[%emt 0:02:19]} Bxd5 {[%emt 0:00:16] This bishop pair is nice.} 28. Qd2 {[%emt 0:00:39]} Re8 {[%emt 0:02:11]} 29. Nc3 {[%emt 0:01:11]} Qd6 {[%emt 0:01:22] And now ...Qb4 would win.} 30. Rd1 {[%emt 0:01:32]} Bb3 {[%emt 0:00:24]} 31. Rc1 {[%emt 0:01:30]} Qxd4+ {[%emt 0:00:03]} 32. Qf2 {[%emt 0:00:54]} Qxf2+ {[%emt 0:00:12]} 33. Kxf2 {[%emt 0:00:07]} Bd4+ {[%emt 0:00:02]} 34. Kf3 {[%emt 0:00:20]} Re3+ {[%emt 0:00:06]} 35. Kg4 {[%emt 0:00:20]} Bxc3 {[%emt 0:03:41]} 36. g3 {[%emt 0:01:34]} Be6+ {[%emt 0:00:26] Black mates.} 37. Kg5 {[%emt 0:00:10]} Kg7 {[%emt 0:00:52][%csl Gg7][%cal Rc3f6]} 38. Rxc3 {[%emt 0:00:15]} Rxc3 {[%emt 0:00:10]} 39. g4 {[%emt 0:00:34]} f6+ {[%emt 0:00:47]} 40. Kh4 {[%emt 0:00:08]} h6 {[%emt 0:00:13]} 41. g5 {[%emt 0:30:26]} Rh3# {[%emt 0:30:05] Weighted Error Value: White=1.08/Black=0.25 (precise)} 0-1

[Event "44th Chess Olympiad Women 2022"]
[Site "Chennai"]
[Date "2022.07.29"]
[Round "1.19"]
[White "Klinova, Masha"]
[Black "Cho, Yeonhee"]
[Result "1-0"]
[ECO "C68"]
[WhiteElo "2251"]
[BlackElo "1427"]
[Annotator "TA"]
[PlyCount "63"]
[EventDate "2022.07.29"]
[EventType "team-tourn"]
[EventCountry "IND"]
[SourceTitle "playchess.com"]
[Source "ChessBase"]
[SourceQuality "1"]
[WhiteTeam "Israel"]
[BlackTeam "Korea"]
[WhiteTeamCountry "ISR"]
[BlackTeamCountry "KOR"]
[TimeControl "40/5400+30:1800+30"]

{[%evp 14,63,14,7,23,21,47,47,53,45,83,59,90,90,95,85,132,135,133,134,131,116,151,152,146,158,162,151,178,182,301,299,284,290,285,265,273,250,269,231,288,283,392,391,615,615,5281,2558,1404,1196,1196,731]} 1. e4 {[%emt 0:00:03]} e5 {[%emt 0:00:07]} 2. Nf3 {[%emt 0:00:12]} Nc6 {[%emt 0:00:06]} 3. Bb5 {[%emt 0:00:43]} a6 {[%emt 0:00:08]} 4. Bxc6 {[%emt 0:00:07]} dxc6 {[%emt 0:01:05]} 5. d4 {[%emt 0:00:04]} exd4 {[%emt 0:05:17]} 6. Qxd4 {[%emt 0:04:10]} Qxd4 {[%emt 0:05:10]} 7. Nxd4 {[%emt 0:01:12]} Bc5 {[%emt 0:10:27]} 8. Be3 {[%emt 0:00:55][%cal Bc1e3,Be3g5,Bg5d8,Bd8c7,Bc7b6][%mdl 32]} Bb6 {[%emt 0:02:36] C68: Ruy Lopez: Exchange Variation, sidelines.} 9. Nc3 {[%emt 0:00:28]} Nf6 {[%emt 0:00:09]} 10. f3 {[%emt 0:00:21] Prevents Ng4.} O-O {[%emt 0:09:19] White is slightly better.} 11. O-O-O {[%emt 0:01:04] [#]} Ba7 $146 {[%emt 0:10:07]} ({Predecessor:} 11... Bd7 12. g4 Rad8 13. Nf5 Bxf5 14. Bxb6 Bxg4 15. Rxd8 Rxd8 16. Bxc7 Rd7 17. fxg4 Rxc7 {0-1 (41) Hernandez Bermudez,U (2042)-Dordzhieva,D (2293) Chess.com INT 2021}) 12. Bg5 {[%emt 0:06:17]} Bxd4 {[%emt 0:06:40]} 13. Rxd4 {[%emt 0:00:09]} Nd7 {[%emt 0:09:58]} 14. Rd2 {[%emt 0:04:26] 0x0.0020aebffe23dp-1022s more active pieces. The black rooks are badly placed.} f5 {[%emt 0:06:01] [#]} ({Better is} 14... f6 15. Bh4 Ne5) 15. exf5 $1 $16 {[%emt 0:03:48]} Rxf5 {[%emt 0:00:19]} 16. Bd8 {[%emt 0:00:25]} Nf6 {[%emt 0:04:45]} 17. Bxc7 {[%emt 0:01:39] Hoping for Rd8+.} Be6 {[%emt 0:02:48]} 18. Re1 {[%emt 0:01:44]} Bf7 {[%emt 0:02:17]} 19. Bb6 {[%emt 0:09:52]} Nd5 {[%emt 0:15:44] Inhibits Re7.} 20. Nxd5 {[%emt 0:05:08]} Bxd5 {[%emt 0:00:52]} 21. b3 {[%emt 0:00:36]} c5 {[%emt 0:03:39]} (21... Rf6 $142 22. Re7 Rf7) 22. g4 $18 {[%emt 0:03:03]} Rf6 {[%emt 0:00:53]} 23. Rxd5 {[%emt 0:01:18]} Rxb6 {[%emt 0:00:04]} 24. Rxc5 {[%emt 0:00:08][%mdl 4096] Endgame KRR-KRR} Rf8 {[%emt 0:00:09]} 25. Re3 {[%emt 0:00:55]} Rbf6 {[%emt 0:00:56]} 26. Rcc3 {[%emt 0:04:16]} Rh6 {[%emt 0:02:22]} 27. Re7 {[%emt 0:00:29]} Rxh2 {[%emt 0:00:23]} 28. Rxb7 {[%emt 0:00:43]} Rf2 {[%emt 0:00:12]} (28... Kh8 $142 29. Rb6 a5) 29. Rcc7 {[%emt 0:00:17] White is clearly winning.} R8xf3 {[%emt 0:00:13]} 30. Rxg7+ {[%emt 0:00:29]} Kh8 {[%emt 0:00:30]} 31. Rxh7+ {[%emt 0:00:10]} Kg8 {[%emt 0:00:05]} 32. Rhc7 {[%emt 0:00:32] Black did not feel at home in the position after the opening.  Weighted Error Value: White=0.06 (flawless) /Black=0.39} 1-0

[Event "44th Chess Olympiad Women 2022"]
[Site "Chennai"]
[Date "2022.07.29"]
[Round "1.19"]
[White "Levitan, Ronit"]
[Black "Kang, Sohyun"]
[Result "1-0"]
[ECO "C07"]
[WhiteElo "2084"]
[BlackElo "1593"]
[Annotator "TA"]
[PlyCount "53"]
[EventDate "2022.07.29"]
[EventType "team-tourn"]
[EventCountry "IND"]
[SourceTitle "playchess.com"]
[Source "ChessBase"]
[SourceQuality "1"]
[WhiteTeam "Israel"]
[BlackTeam "Korea"]
[WhiteTeamCountry "ISR"]
[BlackTeamCountry "KOR"]
[TimeControl "40/5400+30:1800+30"]

{[%evp 26,53,10,4,12,9,15,-12,67,80,319,313,510,510,504,504,488,440,1826,773,747,596,1114,752,1368,1359,1206,844,757,786]} 1. e4 {[%emt 0:00:34]} e6 {[%emt 0:00:12]} 2. d4 {[%emt 0:00:10]} d5 {[%emt 0:00:12]} 3. Nd2 {[%emt 0:00:14]} c5 {[%emt 0:00:44]} 4. exd5 {[%emt 0:00:15]} Qxd5 {[%emt 0:01:10]} 5. Ngf3 {[%emt 0:00:18]} cxd4 {[%emt 0:01:03]} 6. Bc4 {[%emt 0:00:22]} Qd6 {[%emt 0:00:19]} 7. O-O {[%emt 0:01:21]} Nf6 {[%emt 0:00:42]} 8. Nb3 {[%emt 0:00:08]} Nc6 {[%emt 0:00:31]} 9. Nbxd4 {[%emt 0:00:17]} Nxd4 {[%emt 0:00:11]} 10. Nxd4 {[%emt 0:00:06]} a6 {[%emt 0:03:09]} 11. Re1 {[%emt 0:01:24]} Qc7 {[%emt 0:01:21]} 12. Bb3 {[%emt 0:00:07]} Bd6 {[%emt 0:00:09]} 13. h3 {[%emt 0:05:24]} O-O {[%emt 0:05:14]} 14. c3 {[%emt 0:01:16]} b5 {[%emt 0:08:31] C07: French Tarrasch: 3...c5, 4 Ngf3 and 4 exd5 Qxd5.} 15. Bg5 {[%emt 0:05:42]} Bb7 {[%emt 0:07:12]} 16. Qd3 {[%emt 0:20:35][%cal Oe1e6] [#]} Nh5 $146 {[%emt 0:10:17]} ({Black should play} 16... Nd5 $11) ({Predecessor:} 16... Nd5 17. Bc2 g6 18. Qd2 Bh2+ 19. Kf1 Nf4 20. Bxf4 Bxf4 21. Qe2 Rad8 22. Be4 Rd7 23. Bxb7 Qxb7 {0-1 (35) Reynoso Henriquez,J (2083)-Diaz Valdez,E (1868) Santo Domingo 2019}) 17. Rxe6 {[%emt 0:14:37][%cal Oa1e1] White is more active.} Bf4 $2 {[%emt 0:12:57]} (17... fxe6 $2 18. Nxe6 Bh2+ 19. Kh1 $18) (17... Rae8 $16 18. Rxe8 (18. Bc2 g6 $11) 18... Rxe8) 18. Re7 $18 {[%emt 0:03:48] The board is on fire.} Qc8 {[%emt 0:06:21]} (18... Qc5 19. Rxb7 (19. Bc2 g6 $18) 19... Qxg5) 19. Bxf4 {[%emt 0:01:50] White is clearly winning.} ({Less strong is} 19. Bc2 g6 $18) 19... Nxf4 {[%emt 0:00:26]} 20. Qg3 {[%emt 0:00:07]} Qb8 {[%emt 0:23:52]} 21. Nf5 {[%emt 0:02:57][%csl Gf5][%cal Rg3g7]} g6 {[%emt 0:06:41] [#]} (21... Ng6 $142 22. Rxf7 Rxf7) 22. Nh6+ {[%emt 0:01:31]} (22. Bxf7+ $142 $1 {[%mdl 512]} Rxf7 23. Nh6+ Kg7 24. Rxf7+ Kxh6 25. Rxf4) 22... Kg7 {[%emt 0:00:51]} 23. Nxf7 {[%emt 0:01:43] Ng5+ would kill now.} Bd5 {[%emt 0:03:21]} 24. Nd6+ {[%emt 0:06:37]} Kh8 {[%emt 0:02:02] [#]} 25. Qh4 $1 {[%emt 0:02:19][%csl Ge7][%cal Rh4h7]} Nh5 {[%emt 0:02:50]} 26. Bxd5 {[%emt 0:01:04]} Qxd6 {[%emt 0:01:32]} 27. Bxa8 {[%emt 0:00:18] White took control after the opening.  Weighted Error Value: White=0.45/Black=1.07} 1-0

[Event "44th Chess Olympiad Women 2022"]
[Site "Chennai"]
[Date "2022.07.29"]
[Round "1.19"]
[White "Park, Sunwoo"]
[Black "Belenkaya, Dina"]
[Result "1-0"]
[ECO "B12"]
[WhiteElo "1773"]
[BlackElo "2256"]
[Annotator "TA"]
[PlyCount "75"]
[EventDate "2022.07.29"]
[EventType "team-tourn"]
[EventCountry "IND"]
[SourceTitle "playchess.com"]
[Source "ChessBase"]
[SourceQuality "1"]
[WhiteTeam "Korea"]
[BlackTeam "Israel"]
[WhiteTeamCountry "KOR"]
[BlackTeamCountry "ISR"]
[TimeControl "40/5400+30:1800+30"]

{[%evp 11,75,0,24,24,28,-6,-6,-6,-1,-12,-8,-35,-24,-31,-29,-10,-28,-17,-26,-29,-27,-26,-25,-23,6,0,60,71,57,32,173,161,141,144,137,93,85,83,82,16,38,0,16,22,27,28,31,6,122,129,116,21,99,0,31,0,76,0,514,517,488,488,725,720,1541,1480]} 1. e4 {[%emt 0:00:03]} c6 {[%emt 0:00:05]} 2. d4 {[%emt 0:00:16]} d5 {[%emt 0:00:29]} 3. e5 {[%emt 0:00:33]} Bf5 {[%emt 0:00:24]} 4. Nf3 {[%emt 0:01:01]} e6 {[%emt 0:00:13]} 5. Bd3 {[%emt 0:00:34]} Bxd3 {[%emt 0:00:21]} 6. Qxd3 {[%emt 0:00:09]} Qa5+ {[%emt 0:00:21]} 7. c3 {[%emt 0:02:36] B12: Caro-Kann: Advance Variation.} Qa6 {[%emt 0:00:10]} 8. Qc2 {[%emt 0:05:36]} c5 {[%emt 0:04:25]} 9. dxc5 {[%emt 0:12:43] The position is equal.} Bxc5 {[%emt 0:00:18]} 10. b4 {[%emt 0:00:44]} Be7 {[%emt 0:03:01] [#]} 11. Be3 $146 {[%emt 0:04:31]} ({Predecessor:} 11. a4 Qc4 12. Na3 Qg4 13. O-O Nc6 14. Nb5 Rc8 15. Qd3 Qg6 16. Qe3 a6 17. Qb6 {1-0 (23) Biancosino,R (2065)-Solano,P (1907) Buenos Aires 2017}) 11... Nd7 {[%emt 0:01:08]} 12. a4 {[%emt 0:08:52]} Rc8 {[%emt 0:03:42] With the idea ...Bxb4.} 13. b5 {[%emt 0:01:31]} Qa5 {[%emt 0:00:41]} 14. O-O {[%emt 0:02:21]} h5 {[%emt 0:07:53]} 15. Rc1 {[%emt 0:05:50]} Nh6 {[%emt 0:01:06]} 16. Nbd2 {[%emt 0:02:44]} Nf5 {[%emt 0:01:15]} 17. Qd3 {[%emt 0:04:42]} Bc5 {[%emt 0:20:48]} 18. c4 $36 {[%emt 0:06:06][%mdl 2048] White has good play.} d4 {[%emt 0:12:46]} (18... Nxe3 $11 19. fxe3 Qc7) 19. Nb3 {[%emt 0:03:37]} (19. Nxd4 Nxe5 20. Qe4 Nxe3 $15) ({Worse is} 19. Bxd4 Nxd4 20. Nxd4 Nxe5 $17) 19... Qc7 {[%emt 0:08:49]} 20. Bd2 {[%emt 0:15:56]} ({Much weaker is} 20. Nfxd4 Nxe5 21. Qe4 Nxe3 22. fxe3 Ng4 $15) ({Don't play} 20. Bxd4 Nxd4 21. Nfxd4 Nxe5 $11) 20... Nxe5 {[%emt 0:06:08]} (20... O-O $14) 21. Nxe5 $18 {[%emt 0:00:39]} Qxe5 {[%emt 0:00:04]} 22. Re1 {[%emt 0:00:12]} Qf6 {[%emt 0:00:22]} 23. Nxc5 {[%emt 0:01:10]} Rxc5 {[%emt 0:00:02]} 24. Bb4 {[%emt 0:00:17]} Rc7 {[%emt 0:01:05]} 25. c5 {[%emt 0:02:31]} (25. a5 $16) 25... O-O $11 {[%emt 0:06:18]} 26. c6 {[%emt 0:07:25][%mdl 1024] White has compensation.} (26. a5 $5 {[%cal Rb5b6]}) 26... Rb8 {[%emt 0:03:08]} 27. Ba5 {[%emt 0:00:46]} b6 {[%emt 0:04:06]} 28. Bd2 {[%emt 0:00:10] Strongly threatening Bf4.} Re8 {[%emt 0:04:19]} 29. a5 {[%emt 0:02:49]} Ne7 {[%emt 0:07:17]} (29... e5 $11) 30. axb6 $16 {[%emt 0:01:09]} axb6 {[%emt 0:00:01]} 31. Bb4 {[%emt 0:00:57] 0x0.002360edf3fbdp-1022s more active pieces.} ({White should try} 31. Ra4 $16) 31... e5 {[%emt 0:00:46]} (31... Rcc8 $11 {keeps the balance.}) 32. Bxe7 {[%emt 0:01:14]} (32. Qe4 $16 Ng6 33. Ra6) 32... Qxe7 {[%emt 0:01:35]} 33. h3 {[%emt 0:02:03]} Qd8 {[%emt 0:01:41] [#]} (33... Qc5 $11) 34. Ra4 {[%emt 0:02:47]} (34. f4 $1 $16) 34... Qd5 {[%emt 0:00:47][%mdl 8192] [#]} (34... Rce7 $1 $11 {and Black has nothing to worry.}) 35. Rxd4 $3 $18 {[%emt 0:00:32][%cal Ba4d4,Bd4d6,Bd6d7][%mdl 608] Pin. White is clearly winning.} Qe6 {[%emt 0:01:24]} 36. Rd6 {[%emt 0:00:59]} Qc8 {[%emt 0:00:27]} (36... Qe7 $142 37. Rd5 Rcc8) 37. Rd7 {[%emt 0:00:39] aiming for Qd6.} g6 {[%emt 0:00:41]} 38. Qd6 {[%emt 0:00:19][%csl LRc7,LRe5] Weighted Error Value: White=0.21 (precise) /Black=0.54} 1-0

[Event "44th Chess Olympiad Women 2022"]
[Site "Chennai"]
[Date "2022.07.29"]
[Round "1.19"]
[White "Park, Haneul"]
[Black "Lahav, Michal"]
[Result "0-1"]
[ECO "A73"]
[WhiteElo "1531"]
[BlackElo "2191"]
[Annotator "TA"]
[PlyCount "80"]
[EventDate "2022.07.29"]
[EventType "team-tourn"]
[EventCountry "IND"]
[SourceTitle "playchess.com"]
[Source "ChessBase"]
[SourceQuality "1"]
[WhiteTeam "Korea"]
[BlackTeam "Israel"]
[WhiteTeamCountry "KOR"]
[BlackTeamCountry "ISR"]
[TimeControl "40/5400+30:1800+30"]

{[%evp 21,80,19,29,33,26,11,41,41,35,39,61,2,0,1,24,0,0,0,0,-57,-55,-105,-89,-106,-101,-159,-137,-187,-154,-220,-188,-284,-279,-268,-195,-194,-193,-264,-257,-584,-551,-626,-622,-601,-425,-422,-423,-443,-422,-585,-375,-360,-302,-783,-734,-756,-719,-3270,-2961,-29995,-29996]} 1. d4 {[%emt 0:00:05]} Nf6 {[%emt 0:00:03]} 2. c4 {[%emt 0:00:08]} c5 {[%emt 0:00:20]} 3. d5 {[%emt 0:00:15]} e6 {[%emt 0:00:11]} 4. Nc3 {[%emt 0:00:09]} exd5 {[%emt 0:00:06]} 5. cxd5 {[%emt 0:00:05]} d6 {[%emt 0:00:19]} 6. e4 {[%emt 0:00:40]} g6 {[%emt 0:00:15]} 7. Nf3 {[%emt 0:00:26]} Bg7 {[%emt 0:01:01]} 8. Be2 {[%emt 0:00:22]} O-O {[%emt 0:00:15]} 9. O-O {[%emt 0:00:08]} Bg4 {[%emt 0:00:18]} 10. h3 {[%emt 0:04:08]} Bxf3 {[%emt 0:00:55]} 11. Bxf3 {[%emt 0:00:09]} Nbd7 {[%emt 0:02:39]} 12. Bf4 {[%emt 0:16:02] A73: Modern Benoni: Classical: Unusual Black 9th moves.} Qe7 {[%emt 0:01:06]} 13. Re1 {[%emt 0:11:30]} Ne8 {[%emt 0:01:21]} 14. Qd2 {[%emt 0:33:08] White is slightly better.} Nc7 {[%emt 0:10:23]} 15. Be2 {[%emt 0:20:45] [#]} Bf6 $146 {[%emt 0:29:46]} ({Predecessor:} 15... a6 16. Bf1 b5 17. Bg3 b4 18. Nd1 Nb5 19. f3 Nb6 20. Ne3 Qd7 21. f4 Nd4 22. Rad1 f5 23. Nc4 Nxc4 24. Bxc4 fxe4 25. Rxe4 a5 26. Kh2 Rf7 27. Bf2 {½-½ (27) Brunello,S (2566)-Quillan,G (2361) Riga 2017}) 16. Nb5 {[%emt 0:02:57]} (16. Bf1 $14) 16... Nxb5 $11 {[%emt 0:23:41]} 17. Bxb5 {[%emt 0:00:23]} Rfe8 {[%emt 0:00:10]} (17... a6 $5 {[%cal Ra6b5]} 18. Bxd7 Qxd7 $11) 18. Rab1 {[%emt 0:02:29]} (18. e5 $5 Bxe5 19. Bxe5 dxe5 20. d6 $11) 18... a6 {[%emt 0:00:12]} 19. Bxd7 {[%emt 0:00:46]} Qxd7 {[%emt 0:00:04]} 20. b4 {[%emt 0:01:30]} ({White should try} 20. Bg3 $11) 20... c4 $15 {[%emt 0:00:14][%cal Bc5c4,Bc4c3][%mdl 32]} 21. Bg5 {[%emt 0:03:08] Black keeps a firm grip on the game.} (21. Rbc1 $15) 21... Bg7 {[%emt 0:01:06]} 22. Qc2 {[%emt 0:00:39]} Rac8 {[%emt 0:00:32]} 23. a4 {[%emt 0:00:28] [#]} (23. Rbc1 $142) 23... b5 $1 $17 {[%emt 0:00:17]} 24. a5 {[%emt 0:00:55]} (24. axb5 $17 {was worth a try.} axb5 25. Bf4) 24... h6 $19 {[%emt 0:04:33]} 25. Bd2 {[%emt 0:00:05]} (25. Bf4 $17) 25... c3 {[%emt 0:00:36]} 26. Be3 {[%emt 0:00:10]} (26. Bf4 $142) 26... Rc4 {[%emt 0:00:08]} 27. Bb6 {[%emt 0:01:24]} Qe7 {[%emt 0:01:07][%cal Rc4e4]} 28. f3 {[%emt 0:00:43]} Be5 {[%emt 0:00:14]} 29. Be3 {[%emt 0:00:29]} (29. Bf2 {was called for.}) 29... Qh4 {[%emt 0:00:30]} 30. Bf2 $2 {[%emt 0:00:33]} (30. Kf1) 30... Qf4 {[%emt 0:00:52]} 31. Be3 {[%emt 0:00:38]} Qh2+ {[%emt 0:01:00]} 32. Kf1 {[%emt 0:00:05][%cal Bg1f1,Bf1f2,Bf2e3][%mdl 32]} Kh7 {[%emt 0:00:30]} 33. Bg1 {[%emt 0:00:34]} Qh1 {[%emt 0:09:31] [#] Strongly threatening ...Bd4.} 34. Kf2 {[%emt 0:00:25]} h5 {[%emt 0:00:05]} 35. Red1 {[%emt 0:01:01]} Rec8 {[%emt 0:00:30] Threatens to win with ...Bd4+.} 36. Ke3 {[%emt 0:00:36] Against Bd4+} g5 {[%emt 0:02:11] Prevents f4.} 37. Rbc1 $2 {[%emt 0:00:31]} (37. Kd3) 37... Rxb4 {[%emt 0:00:02] Hoping for ...Rb2.} 38. Rb1 {[%emt 0:00:09]} Ra4 {[%emt 0:01:50]} 39. Bf2 {[%emt 0:00:40]} Qxg2 {[%emt 0:00:31] ( -> ...g4)} 40. Rg1 {[%emt 0:00:09]} Bd4+ {[%emt 0:00:07] Weighted Error Value: White=0.99/Black=0.20 (precise)} 0-1